Cogmind - Beta 13 @@@ ROGUE MODE // 2024.07.10 @ 16:52:33 Player: ThatBishHoly Result: Destroyed by G-47 Trooper with Particle Gun Performance ------------- Evolutions (2) 1000 Regions Visited (5) 1000 Robots Destroyed (38) 190 Value Destroyed (823) 823 Prototype IDs (2) 40 Alien Tech Used (0) 0 Bonus (0) 0 TOTAL SCORE: 3053 Bonus ------- None Cogmind --------- Core Integrity 0/550 Matter 265/300 Energy 147/150 System Corruption 0% Temperature Cool (9) Movement Core (200) Ox3 Location -8/Materials Parts ------- > --- POWER (1) -------- Micro Nuclear Core > --- PROPULSION (4) --- (None) > --- UTILITY (2) ------ Experimental Sensor Array > --- WEAPON (4) ------- Plasma Cutter Maul > --- INVENTORY (5) ---- (None) Peak State ------------ > --- POWER ------------ Micro Nuclear Core > --- PROPULSION ------- Light Treads Light Treads > --- UTILITY ---------- Coolant Injector High-capacity Storage Unit > --- WEAPON ----------- Heavy Laser Heavy Laser Heavy Laser Heavy Laser > --- INVENTORY -------- Ion Engine Micro Nuclear Core Coolant Injector Visual Processing Unit Experimental Sensor Array Heavy Armor Plating Improved Assault Rifle Plasma Cutter EMP Trap EMP Trap EMP Trap [Rating: 30] Favorites ----------- Power Ion Engine Engine Ion Engine Power Core Micro Nuclear Core Propulsion Light Treads Treads Light Treads Leg Carbon-fiber Leg Hover Unit Improved Hover Unit Utility High-capacity Storage Unit Device Tractor Beam Storage High-capacity Storage Unit Protection Heavy Armor Plating Weapon Rocket Launcher Energy Gun Heavy Laser Ballistic Gun Assault Rifle Launcher Rocket Launcher Special Weapon Plasma Cutter Impact Weapon Maul Build | -11 -10 -10 -9 -9 -8 ------- Run | Yrd Mat Min Mat Min Mat Slots Evolved 4 | . . . 2 . 2 Power . | . . . . . . Propulsion 2 | . . . . . 2 Utility . | . . . . . . Weapon 2 | . . . 2 . . Parts Attached 37 | 6 5 . 2 5 19 Power 6 | 1 . . . 1 4 Engine 3 | 1 . . . 1 1 Core 3 | . . . . . 3 Reactor . | . . . . . . Propulsion 6 | 2 1 . . 1 2 Treads 4 | 2 1 . . 1 . Leg 1 | . . . . . 1 Wheel . | . . . . . . Hover 1 | . . . . . 1 Flight . | . . . . . . Utility 8 | 1 2 . . 1 4 Device 4 | . 1 . . . 3 Storage 3 | 1 1 . . 1 . Processor . | . . . . . . Hackware . | . . . . . . Protection 1 | . . . . . 1 Artifact . | . . . . . . Weapon 17 | 2 2 . 2 2 9 Energy Gun 4 | . . . . . 4 Energy Cannon . | . . . . . . Ballistic Gun 4 | 2 . . . . 2 Ballistic Cannon . | . . . . . . Launcher 6 | . 2 . 2 1 1 Special Weapon 2 | . . . . 1 1 Impact Weapon 1 | . . . . . 1 Slashing Weapon . | . . . . . . Piercing Weapon . | . . . . . . Special Melee Weapon . | . . . . . . Unidentified Prototypes 2 | . . . . . 2 Parts Lost 16 | . . 1 2 . 13 Power 3 | . . . 1 . 2 Propulsion 5 | . . . 1 . 4 Utility 2 | . . 1 . . 1 Weapon 6 | . . . . . 6 Highest Loss Streak 8 | . . 1 2 . 8 To Critical Strikes . | . . . . . . Average Slot Usage (%) 87 | . 97 86 87 92 56 Engine 6 | . 14 14 10 4 3 Treads 21 | . 28 28 21 22 9 Device 1 | . 11 1 . . 4 Storage 18 | . 14 14 11 21 8 Energy Gun 1 | . . . . . 11 Launcher 36 | . 19 28 43 43 7 Naked Turns . | . . . . . . Heaviest Build 64 | 14 54 54 61 63 64 Greatest Support 40 | 40 40 40 40 40 40 Greatest Overweight (x) 19 | . 1 1 3 1 19 Average Overweight (x) . | . . 1 1 1 1 Largest Inventory Capacity 20 | 8 20 20 20 20 20 Average Capacity 18 | 7 13 20 20 20 15 Most Carried 16 | 5 8 8 8 12 16 Average Carried 8 | . 4 8 6 8 9 Final Capacity 20 | 8 20 20 20 20 5 Final Carried 10 | . 8 8 8 10 . Class Distribution -------------------- 79% | Bomber 17% | Mutant Dominant Class ---------------- Mutant | -10/Materials Mutant | -10/Mines Bomber | -9/Materials Bomber | -9/Mines Bomber | -8/Materials Resources | -11 -10 -10 -9 -9 -8 ----------- Run | Yrd Mat Min Mat Min Mat Matter Collected 1086 | 157 199 . 235 394 101 Remotely 199 | . 199 . . . . Salvage Created 767 | . 249 62 65 69 322 Parts 69 | . 22 2 17 4 24 Haulers Intercepted 2 | . 1 . 1 . . Recyclers Shooed . | . . . . . . Parts Field Recycled . | . . . . . . Retrieved Matter . | . . . . . . Parts Self-Destructed . | . . . . . . Prevented . | . . . . . . Kills | -11 -10 -10 -9 -9 -8 ------- Run | Yrd Mat Min Mat Min Mat Combat Hostiles Destroyed 24 | . 7 2 5 2 8 Guns 6 | . 2 . . . 4 AOE 17 | . 5 2 5 2 3 Classes Destroyed 9 | . 4 . 2 1 2 Worker 7 | . . . 3 1 3 Builder 3 | . 1 . 1 . 1 Hauler 2 | . 1 . 1 . . Recycler 1 | . . . . . 1 Watcher 1 | . . . . . 1 Swarmer 9 | . 1 . 4 . 4 Grunt 12 | . 6 2 . 1 3 Duelist 1 | . . . . 1 . Sentry 2 | . . . 1 . 1 Best Kill Streak 6 | . 5 2 5 3 6 Combat Bots Only 4 | . 4 2 4 2 4 Max Kills in Single Turn 5 | . 2 1 5 3 2 Gunslinging . | . . . . . . Exploded 4 | . 1 1 4 2 1 Melee . | . . . . . . Uniques/NPCs Destroyed . | . . . . . . Combat | -11 -10 -10 -9 -9 -8 -------- Run | Yrd Mat Min Mat Min Mat Hostile Shots Fired 238 | . 34 12 25 1 166 Missed 83 | . 11 4 8 1 59 Damage Taken 2392 | . 257 149 242 20 1724 Core 625 | . 35 21 9 10 550 Absorbed by Shields . | . . . . . . Core Remaining (%) 90 | 100 . 77 . 95 . Volleys Fired 58 | . 19 2 5 10 22 Largest 4 | . 2 2 4 4 4 Hottest 276 | . 66 66 132 132 276 Shots Fired 138 | . 38 4 20 13 63 Gun 73 | . 24 . . . 49 Cannon . | . . . . . . Launcher 52 | . 14 4 20 4 10 Special 13 | . . . . 9 4 Kinetic 25 | . 24 . . . 1 Thermal 61 | . . . . 9 52 Explosive 52 | . 14 4 20 4 10 Electromagnetic . | . . . . . . Robot Hit Streak 6 | . 5 4 4 2 6 Robot Miss Streak 7 | . 3 1 5 5 7 Penetration Max . | . . . . . . Secondary Targets 2 | . 1 . . . 1 Max Gunslinging Chain 1 | . 1 . . . 1 Shots Hit Robots 71 | . 23 2 7 3 36 Core Hits 63 | . 18 6 12 4 23 Critical Kills . | . . . . . . Critical Parts Destroyed . | . . . . . . Critical Strikes 2 | . . . . . 2 Burn 2 | . . . . . 2 Melee Attacks . | . . . . . . Impact . | . . . . . . Slashing . | . . . . . . Piercing . | . . . . . . Sneak Attacks . | . . . . . . Combat Hostiles . | . . . . . . Follow-up Attacks . | . . . . . . Damage Inflicted 2635 | . 727 155 575 195 983 Guns 831 | . 198 . . . 633 Cannons . | . . . . . . Explosions 1681 | . 527 144 575 147 288 Melee . | . . . . . . Ramming 67 | . 2 11 . 25 29 Kinetic 198 | . 198 . . . . Thermal 689 | . . . . 23 666 Explosive 1681 | . 527 144 575 147 288 Electromagnetic . | . . . . . . Impact . | . . . . . . Slashing . | . . . . . . Piercing . | . . . . . . Highest Corruption . | . . . . . . Average Corruption . | . . . . . . Corruption Purged . | . . . . . . Corruption Blocked . | . . . . . . Overload Shots . | . . . . . . Overflow Damage 78 | . . 18 45 . 15 Projectiles . | . . . . . . Explosions 78 | . . 18 45 . 15 Melee . | . . . . . . Knockbacks 2 | . . 1 . . 1 Impact 2 | . . 1 . . 1 Kinetic . | . . . . . . Secondary . | . . . . . . Self-Inflicted Damage 195 | . 4 43 48 20 80 Shots 6 | . 1 1 1 1 2 Rammed 6 | . 1 1 . 2 2 Targets Rammed 17 | . 1 1 . 2 13 Kicked 11 | . . . . . 11 Crushed . | . . . . . . Highest Temperature 262 | . 36 12 103 48 262 Average Temperature 86 | . 13 7 41 29 128 Received Heat Transfer 1254 | . 114 60 81 . 999 Siege Activations . | . . . . . . Robots Corrupted . | . . . . . . Combat Hostiles . | . . . . . . Parts Fried . | . . . . . . Impact Corruptions . | . . . . . . Robots Melted 1 | . . . . . 1 Combat Hostiles 1 | . . . . . 1 Parts Melted 6 | . . . . . 6 Heat Transferred 1591 | . . . . 74 1517 Parts Sabotaged . | . . . . . . Parts Stolen . | . . . . . . Parts Stripped . | . . . . . . Power Chain Reactions . | . . . . . . Alert | -11 -10 -10 -9 -9 -8 ------- Run | Yrd Mat Min Mat Min Mat Peak Influence 394 | . 349 213 394 147 283 Initial 135 | . . 135 82 67 . Average 67 | . 223 205 133 21 120 Maximum Alert Level 1 | . 1 1 1 . 1 Low Security (%) 86 | 100 35 12 84 100 67 Level 1 13 | . 64 87 15 . 32 Level 2 . | . . . . . . Level 3 . | . . . . . . Level 4 . | . . . . . . Level 5 . | . . . . . . High Security . | . . . . . . Max Security . | . . . . . . Squads Dispatched 4 | . 2 . . 1 1 Investigation 1 | . . . . . 1 Extermination . | . . . . . . Reinforcement 3 | . 2 . . 1 . Assault . | . . . . . . Garrison . | . . . . . . Intercept . | . . . . . . Searches Triggered . | . . . . . . Construction Impeded 1 | . . . . 1 . Haulers Reinforced . | . . . . . . Active Scanning Responses . | . . . . . . Cargo Convoy Interrupts . | . . . . . . Stealth | -11 -10 -10 -9 -9 -8 --------- Run | Yrd Mat Min Mat Min Mat Distress Signals 5 | . 3 . 2 . . Communications Jammed . | . . . . . . Distress Signals . | . . . . . . Times Spotted 46 | . 13 2 10 3 18 Peak Tracking Total 6 | . 4 2 4 2 6 Tactical Retreats 5 | . 1 . . . 4 Traps | -11 -10 -10 -9 -9 -8 ------- Run | Yrd Mat Min Mat Min Mat Traps Triggered . | . . . . . . Indirectly . | . . . . . . Trap Hack Attempts . | . . . . . . Triggered . | . . . . . . Disarmed . | . . . . . . Reprogrammed . | . . . . . . Reused 1 | . . . . . 1 Traps Extracted . | . . . . . . Installed 1 | . . . . . 1 Triggered 1 | . . . . . 1 Most Traps Carried 3 | . . . . 3 3 Machines | -11 -10 -10 -9 -9 -8 ---------- Run | Yrd Mat Min Mat Min Mat Machines Disabled 5 | . 2 . 3 . . Max in Single Turn 2 | . 2 . 1 . . Machines Repaired . | . . . . . . Machines Dismantled . | . . . . . . Machines Sabotaged . | . . . . . . Overloaded Fab Kills . | . . . . . . Hacking | -11 -10 -10 -9 -9 -8 --------- Run | Yrd Mat Min Mat Min Mat Machines Accessed 1 | . . . . . 1 Terminals 1 | . . . . . 1 Fabricators . | . . . . . . Repair Stations . | . . . . . . Recycling Units . | . . . . . . Scanalyzers . | . . . . . . Garrison Access . | . . . . . . Total Hacks 4 | . . . . . 4 Successful . | . . . . . . Failed 4 | . . . . . 4 Catastrophic . | . . . . . . Database Lockouts . | . . . . . . Manual . | . . . . . . Terminals 4 | . . . . . 4 Fabricators . | . . . . . . Repair Stations . | . . . . . . Recycling Units . | . . . . . . Scanalyzers . | . . . . . . Garrison Access . | . . . . . . Terminal Hacks . | . . . . . . Fabricator Hacks . | . . . . . . Repair Station Hacks . | . . . . . . Recycling Unit Hacks . | . . . . . . Scanalyzer . | . . . . . . Garrison Access Hacks . | . . . . . . Unauthorized Hacks . | . . . . . . Terminals . | . . . . . . Fabricators . | . . . . . . Repair Stations . | . . . . . . Recycling Units . | . . . . . . Scanalyzers . | . . . . . . Garrison Access . | . . . . . . Data Cores Recovered . | . . . . . . Used . | . . . . . . Hacking Detections 1 | . . . . . 1 Full Trace Events 1 | . . . . . 1 Feedback Events . | . . . . . . Feedback Blocked . | . . . . . . Robot Schematics Acquired . | . . . . . . Robots Built . | . . . . . . Authchips . | . . . . . . Time . | . . . . . . Total Robot Build Rating . | . . . . . . Part Schematics Acquired . | . . . . . . Parts Built . | . . . . . . Authchips . | . . . . . . Time . | . . . . . . Total Part Build Rating . | . . . . . . Parts Repaired . | . . . . . . Time . | . . . . . . Parts Recycled . | . . . . . . Recycled Matter . | . . . . . . Retrieved Matter . | . . . . . . Retrieved Components . | . . . . . . Parts Scanalyzed . | . . . . . . Part Schematics Acquired . | . . . . . . Parts Damaged . | . . . . . . Bothacking | -11 -10 -10 -9 -9 -8 ------------ Run | Yrd Mat Min Mat Min Mat Used RIF Installer . | . . . . . . Robots Hacked . | . . . . . . Non-combat . | . . . . . . Combat . | . . . . . . Robot Hacks Applied . | . . . . . . Relay Couplers Released . | . . . . . . Fabnet Peak Effective % . | . . . . . . Robots Rewired . | . . . . . . Allies Hacked . | . . . . . . Hacks Repelled . | . . . . . . Allies | -11 -10 -10 -9 -9 -8 -------- Run | Yrd Mat Min Mat Min Mat Total Allies . | . . . . . . Largest Group . | . . . . . . Highest-Rated Group . | . . . . . . Highest-Rated Ally . | . . . . . . Total Orders . | . . . . . . Ally Attacks . | . . . . . . Total Damage . | . . . . . . Kills . | . . . . . . Allies Corrupted . | . . . . . . Allies Melted . | . . . . . . Intel | -11 -10 -10 -9 -9 -8 ------- Run | Yrd Mat Min Mat Min Mat Robot Analysis Total . | . . . . . . Derelict Logs Recovered 1 | . . . . 1 . Drone Launches . | . . . . . . Drone Recoveries . | . . . . . . Exploration | -11 -10 -10 -9 -9 -8 ------------- Run | Yrd Mat Min Mat Min Mat Turns Passed 4220 | 68 398 102 401 2726 525 Spaces Moved 1617 | 52 165 40 158 1018 184 Core 31 | 25 . . . . 6 Treads 1501 | 27 165 40 158 1018 93 Legs 81 | . . . . . 81 Wheels . | . . . . . . Hover 4 | . . . . . 4 Flight . | . . . . . . Fastest Speed 50 | 50 160 240 240 240 120 Average Speed 227 | 107 195 240 241 240 210 Slowest Speed 1000 | 160 240 240 400 240 1000 Overloaded Moves . | . . . . . . Propulsion Burnouts . | . . . . . . Robots Hopped . | . . . . . . Cave-ins Triggered . | . . . . . . Exploration Rate (%) 34 | 4 46 8 19 101 29 Regions Visited 5 Branch Regions 2 Pre-discovered Areas 1 | . . . . 1 . Known Exits Taken . | . . . . . . Unknown Exits Taken 5 | 1 1 1 1 1 . Scrap Searched 2 | . . . . 2 . Spaces Dug . | . . . . . . Terrain Destroyed 329 | . 74 37 123 34 61 Melee . | . . . . . . Projectile . | . . . . . . AOE 329 | . 74 37 123 34 61 Terrain Rammed . | . . . . . . Walls Destroyed . | . . . . . . Machines Disabled . | . . . . . . Actions | -11 -10 -10 -9 -9 -8 --------- Run | Yrd Mat Min Mat Min Mat Total 2028 | 64 202 42 167 1278 275 Wait 244 | . . . 1 237 6 Move 1612 | 51 164 39 157 1017 184 Hop . | . . . . . . Pick Up 38 | 6 11 . 2 6 13 Fast Attach 2 | 1 . . . . 1 Attach 26 | 5 1 . 2 3 15 Detach 1 | . . . . . 1 Swap 9 | . 4 . . 2 3 Drop 20 | 1 2 . . 1 16 Fire 58 | . 19 2 5 10 22 Melee . | . . . . . . Ram . | . . . . . . Kick 11 | . . . . . 11 Crush 6 | . 1 1 . 2 2 Escape Stasis . | . . . . . . Rewire . | . . . . . . Trap 1 | . . . . . 1 Miscellaneous . | . . . . . . Route ------- -11/Scrapyard -10/Materials -10/Mines -9/Materials -9/Mines (discovered 2 exits: *Mat x2) -8/Materials (discovered 1 exit: Fac) History --------- Turn | Location | Event 8 | -11/Scrapyard | Discovered new exit (range 15) 69 | -11/Scrapyard | Entered Materials 314 | -10/Materials | Build established: Mutant 432 | -10/Materials | Discovered new exit (range 7) 467 | -10/Materials | Entered Mines 557 | -10/Mines | Discovered new exit (range 6) 569 | -10/Mines | Entered Materials 569 | -9/Materials | Evolved 2 slots: Weapon x2 876 | -9/Materials | Build established: Bomber 942 | -9/Materials | Discovered new exit (range 11) 970 | -9/Materials | Entered Mines 972 | -9/Mines | Met a Derelict bent on vengeance 974 | -9/Mines | Discovered new exit (range 10) 1542 | -9/Mines | Learned 8 Materials zone layouts 1643 | -9/Mines | Discovered new exit (range 11) 1749 | -9/Mines | Found a hidden stash of uninstalled traps 1805 | -9/Mines | Found a damaged Exp. Sensor Array with a note attached 1809 | -9/Mines | Found Prototype Device 2823 | -9/Mines | Learned location of Storage (-7) 3696 | -9/Mines | Entered Materials 3696 | -8/Materials | Evolved 2 slots: Propulsion x2 3697 | -8/Materials | Identified exit to Factory 4045 | -8/Materials | Core integrity fell below 50% 4086 | -8/Materials | Core integrity fell below 20% 4094 | -8/Materials | Lost 8 parts (1p3n4w) 4203 | -8/Materials | Identified Exp. Sensor Array 4221 | -8/Materials | Destroyed by G-47 Trooper with Particle Gun Last Messages --------------- 04108_ Matter Filter disabled. 04136_ G-47 Trooper misfires. 04137_ Lgt. Angular Momentum Engine destroyed. 04139_ G-47 Trooper misfires. 04139_ Kicked G-47 Trooper. 04141_ Kicked G-47 Trooper out of the way. 04142_ Kicked G-47 Trooper. 04147_ Kicked G-47 Trooper out of the way. 04147_ G-47 Trooper knocked back. 04148_ Kicked G-47 Trooper. 04150_ Kicked G-47 Trooper out of the way. 04151_ Kicked G-47 Trooper. 04179_ G-47 Trooper misfires. 04181_ Hvy. Armor Plating destroyed. 04183_ G-47 Trooper IFF system glitched. 04183_ G-47 Trooper destroyed. 04203_ Identified Exp. Sensor Array. 04207_ Carbon-fiber Leg destroyed. 04207_ Acquired Maul. 04219_ Critical hit (Burn: +37). Map ----- +----------------------------------------------------+ | ??????????????????????????????????????????????? | | ??????????????????????????????????????????????? | | ??????????????????????????????????????????????? | | ??????????????????????????????????????????????? | | ??????????????????????????????????????????????? | | ??????????????????????????????????????????????? | | ??????????????????????????????????????????????? | | ??????????????????????????????????????????????? | | ###??????????????????????????????????????????????? | | ?????????????????????????????????????????????????? | | ?????????????????????????????????????????????????? | | ?????????????????????????????????????????????????? | | ###??????????????????????????????????????????????? | | ??????????????????????????????????????????????? | | ??????????????????????????????????????????????? | | ??????????????????????????????????????????????? | | ##+??????????????????????????????????????????????? | | ??????????????????????????????????????????????? | | " ??????????????????????????????????????????????? | | " ?????????????????########?????????????????????? | | " ?????????????????# """ #?????????????????????? | | ?????????????????# """ #?????????????????????? | | ?????????????????#! """ #?????????????????????? | | ???"" # #???# #?????????????????????? | | ??? # #???# #########?????????????? | | ???############ #???# @ # #?????????????? | | ########################g### #?????????????? | | m #?????????????? | | %=? T #?????????????? | | #?????????????? | | ###/##### ################## #?????????????? | | # ## #????????????????# #?????????????? | | # ## #????????????????### ###?????????????? | | #! ! ## #?###########??????? #???????????????? | | # + #?#% % #??????? #???????????????? | | # "T" ## #?#%""%%""" #??????? #???????????????? | | # """ ## ###%""""""" #??????? #???????????????? | | ######### #%%"""""" #??????? #???????????????? | | % % / """"""" #????#??? #???????????????? | | # """""%" #????#??? ???????????????? | | !& # #????#??? ???????????????? | | # ! !!#????#??? ??????????????? | | ###########????#???? ??????????????? | | ######### #??????????????#???? ???????????????? | | ## # #??????????????#?????????????????????? | | ?# "" # #??????????????#? ???????????????? | | ##[ Y" # #??????????????## #??????????????? | | ## "" # #####???????????# #??????????????? | | ## # **#???????????# #??????????????? | | ## # #???????????# #??????????????? | +----------------------------------------------------+ Best States ------------- Heat Dissipation 31 Coolant Potential 65 Energy Generation 18 Energy Capacity 250 Matter Stores 400 Matter Capacity 400 Sight Range 16 Robot Scan Range 20 Terrain Scan Density 10 Armor Coverage 600 Evasion (%) 55 Recoil Reduction 2 Item Schematics ----------------- None Robot Schematics ------------------ None Fabricated ------------ Nothing Alien Tech Used ----------------- None Achievements -------------- None Challenges ------------ None Game ------ Seed EfficiencyWavePerforator Manual? 0 Play Time 00:31:20 Cumulative 45.8 hours Start 2024.07.10 @ 15:52:16 End 2024.07.10 @ 16:52:33 Sessions 1 Manual Loads 0 Difficulty Rogue Special Mode None Game No. 128 Rogue 128 Adventurer 0 Explorer 0 Win Type - Total 0 Types 0/0/0/0/0/0/0/0/0 Lore% 19 Gallery% 37 Achievement% 25 Wizard Run 0 Options --------- Layout 2 ASCII 0 Keyboard 0 Movement Mouse Keybinds 0 Fullscreen 1 Font 48/Smallcaps Map View 25x22 Zoom Use 73% Tactical HUD 1 Map Filters NONE Filters NONE Steam 1 RUN: c390b69e-bbe1-4c9d-b4bf-8ec214918cd7